[Event "1st Gujarat GM Open 2018"]
[Site "Ahmedabad"]
[Date "2018.10.07"]
[Round "3"]
[White "Tukhaev, Adam"]
[Black "Kulkarni, Vinayak"]
[Result "1/2-1/2"]
[ECO "B30"]
[WhiteElo "2556"]
[BlackElo "2203"]
[Annotator "ChessBase"]
[PlyCount "63"]
[EventDate "2018.10.05"]
[EventType "swiss"]
[EventCountry "IND"]
[SourceTitle "playchess.com"]
[Source "ChessBase"]
[SourceQuality "1"]
[TimeControl "5400+30"]

1. e4 {[%emt 0:00:00]} c5 {[%emt 0:00:00]} 2. Nf3 {[%emt 0:00:00]} Nc6 {[%emt 0:00:00]} 3. Bb5 {[%emt 0:00:20]} e6 {[%emt 0:00:04]} 4. O-O {[%emt 0:00:29]} Nge7 {[%emt 0:00:28]} 5. Ba4 {[%emt 0:01:48]} Ng6 {[%emt 0:03:59]} 6. c4 {[%emt 0:12:31]} Be7 {[%emt 0:03:10]} 7. d4 {[%emt 0:02:45]} Nxd4 {[%emt 0:06:34]} 8. Nxd4 {[%emt 0:01:46]} cxd4 {[%emt 0:00:06]} 9. Qxd4 {[%emt 0:00:07]} O-O {[%emt 0:00:41]} 10. Be3 {[%emt 0:09:08]} Qa5 {[%emt 0:04:09]} 11. Qd1 {[%emt 0:14:32]} Bf6 {[%emt 0:06:16]} 12. Nd2 {[%emt 0:05:27]} Bxb2 {[%emt 0:06:19]} 13. Rb1 {[%emt 0:00:07]} Bf6 {[%emt 0:05:20]} 14. c5 {[%emt 0:25:29]} Qc7 {[%emt 0:01:14]} 15. f4 {[%emt 0:02:20]} Be7 {[%emt 0:14:08]} 16. Rc1 {[%emt 0:00:06]} d6 {[%emt 0:02:28]} 17. f5 {[%emt 0:08:28]} Ne5 {[%emt 0:05:02]} 18. f6 {[%emt 0:07:02]} gxf6 {[%emt 0:00:46]} 19. Qh5 {[%emt 0:00:03]} Rd8 {[%emt 0:06:23]} 20. Rc3 {[%emt 0:02:47]} Ng6 {[%emt 0:02:34]} 21. e5 {[%emt 0:00:31]} dxe5 {[%emt 0:01:05]} 22. Ne4 {[%emt 0:00:03]} Qa5 {[%emt 0:06:06]} 23. Bg5 {[%emt 0:03:53]} Rd4 {[%emt 0:10:04]} 24. Rh3 {[%emt 0:00:59]} Qxa4 {[%emt 0:01:41]} 25. Nxf6+ {[%emt 0:00:31]} Bxf6 {[%emt 0:01:02]} 26. Bxf6 {[%emt 0:00:03]} Rg4 {[%emt 0:01:27]} 27. Qxh7+ {[%emt 0:00:56]} Kf8 {[%emt 0:00:04]} 28. Bg5 {[%emt 0:01:18]} Rf4 {[%emt 0:01:58]} 29. Bh6+ {[%emt 0:00:11]} Ke7 {[%emt 0:00:22]} 30. Bg5+ {[%emt 0:00:03]} Kf8 {[%emt 0:00:15]} 31. Bh6+ {[%emt 0:00:02]} Ke7 {[%emt 0:00:04]} 32. Bg5+ {[%emt 0:01:40]} 1/2-1/2

[Event "1st Gujarat GM Open 2018"]
[Site "Ahmedabad"]
[Date "2018.10.07"]
[Round "3"]
[White "Sivuk, Vitaly"]
[Black "Pranav Anand"]
[Result "1-0"]
[ECO "A06"]
[WhiteElo "2545"]
[BlackElo "2269"]
[Annotator "ChessBase"]
[PlyCount "167"]
[EventDate "2018.10.05"]
[EventType "swiss"]
[EventCountry "IND"]
[SourceTitle "playchess.com"]
[Source "ChessBase"]
[SourceQuality "1"]
[TimeControl "5400+30"]

1. Nf3 {[%emt 0:00:00]} d5 {[%emt 0:00:00]} 2. e3 {[%emt 0:00:00]} Nf6 {[%emt 0:00:30]} 3. c4 {[%emt 0:00:03]} e6 {[%emt 0:03:06]} 4. b3 {[%emt 0:00:35]} Bd6 {[%emt 0:06:54]} 5. Bb2 {[%emt 0:00:39]} Nbd7 {[%emt 0:02:59]} 6. d4 {[%emt 0:06:32]} b6 {[%emt 0:10:03]} 7. cxd5 {[%emt 0:03:25]} exd5 {[%emt 0:01:00]} 8. Nc3 {[%emt 0:00:08]} a6 {[%emt 0:00:40]} 9. g3 {[%emt 0:00:22]} Bb7 {[%emt 0:01:46]} 10. Bg2 {[%emt 0:00:08]} O-O {[%emt 0:00:16]} 11. O-O {[%emt 0:00:06]} Re8 {[%emt 0:03:53]} 12. Rc1 {[%emt 0:00:20]} Qe7 {[%emt 0:02:10]} 13. Rc2 {[%emt 0:00:16]} Ne4 {[%emt 0:03:27]} 14. Qc1 {[%emt 0:00:41]} Rac8 {[%emt 0:03:42]} 15. Rd1 {[%emt 0:01:21]} f5 {[%emt 0:03:19]} 16. Bh3 {[%emt 0:10:11]} Rf8 {[%emt 0:04:57]} 17. Qa1 {[%emt 0:07:14]} g5 {[%emt 0:07:53]} 18. Nxe4 {[%emt 0:06:02]} Qxe4 {[%emt 0:04:30]} 19. Ne1 {[%emt 0:00:11]} Qe7 {[%emt 0:01:41]} 20. Nd3 {[%emt 0:02:00]} h5 {[%emt 0:02:06]} 21. Bg2 {[%emt 0:08:27]} Qe6 {[%emt 0:04:07]} 22. Qc1 {[%emt 0:05:28]} Qe7 {[%emt 0:01:04]} 23. b4 {[%emt 0:05:29]} c6 {[%emt 0:04:53]} 24. a4 {[%emt 0:01:45]} Rfe8 {[%emt 0:05:12]} 25. a5 {[%emt 0:01:30]} b5 {[%emt 0:01:57]} 26. Nc5 {[%emt 0:00:43]} Nxc5 {[%emt 0:00:35]} 27. dxc5 {[%emt 0:00:45]} Be5 {[%emt 0:00:12]} 28. Bxe5 {[%emt 0:01:40]} Qxe5 {[%emt 0:00:02]} 29. Rd4 {[%emt 0:00:38]} Rc7 {[%emt 0:00:56]} 30. Qd1 {[%emt 0:03:13]} g4 {[%emt 0:01:14]} 31. Rf4 {[%emt 0:00:55]} Bc8 {[%emt 0:00:22]} 32. Kf1 {[%emt 0:03:34]} Rh7 {[%emt 0:01:35]} 33. Qd4 {[%emt 0:00:22]} Rhe7 {[%emt 0:01:16]} 34. Qxe5 {[%emt 0:00:56]} Rxe5 {[%emt 0:00:03]} 35. Ke2 {[%emt 0:00:10]} Kg7 {[%emt 0:00:17]} 36. Rc1 {[%emt 0:00:25]} Rh8 {[%emt 0:01:31]} 37. Rh1 {[%emt 0:01:04]} Rh6 {[%emt 0:00:59]} 38. Kd3 {[%emt 0:00:12]} Re8 {[%emt 0:02:14]} 39. h3 {[%emt 0:04:17]} Re7 {[%emt 0:01:21]} 40. Kd4 {[%emt 0:03:14]} Rf6 {[%emt 0:00:39]} 41. hxg4 {[%emt 0:00:57]} hxg4 {[%emt 0:00:12]} 42. Rh5 {[%emt 0:00:37]} Re8 {[%emt 0:00:57]} 43. Bf1 {[%emt 0:01:11]} Rh6 {[%emt 0:01:53]} 44. Rxh6 {[%emt 0:02:12]} Kxh6 {[%emt 0:00:02]} 45. Bg2 {[%emt 0:00:17]} Kg5 {[%emt 0:00:20]} 46. f3 {[%emt 0:00:52]} gxf3 {[%emt 0:02:19]} 47. Bxf3 {[%emt 0:00:05]} Rh8 {[%emt 0:00:33]} 48. Ke5 {[%emt 0:01:23]} Rh6 {[%emt 0:00:09]} 49. Rh4 {[%emt 0:02:22]} Rxh4 {[%emt 0:06:13]} 50. gxh4+ {[%emt 0:00:06]} Kxh4 {[%emt 0:00:03]} 51. Kf4 {[%emt 0:04:45]} Kh3 {[%emt 0:00:45]} 52. Bh5 {[%emt 0:00:21]} Kg2 {[%emt 0:01:52]} 53. Be8 {[%emt 0:00:45]} Bb7 {[%emt 0:00:24]} 54. Kxf5 {[%emt 0:04:33]} Kf3 {[%emt 0:00:11]} 55. Ke6 {[%emt 0:00:13]} Bc8+ {[%emt 0:00:30]} 56. Bd7 {[%emt 0:02:27]} Bxd7+ {[%emt 0:02:17]} 57. Kxd7 {[%emt 0:00:06]} Kxe3 {[%emt 0:00:02]} 58. Kxc6 {[%emt 0:00:06]} d4 {[%emt 0:00:03]} 59. Kb7 {[%emt 0:00:20]} d3 {[%emt 0:00:06]} 60. c6 {[%emt 0:00:03]} d2 {[%emt 0:00:05]} 61. c7 {[%emt 0:00:02]} d1=Q {[%emt 0:00:21]} 62. c8=Q {[%emt 0:00:11]} Qd6 {[%emt 0:01:41]} 63. Qc3+ {[%emt 0:01:45]} Ke2 {[%emt 0:00:48]} 64. Ka7 {[%emt 0:00:26]} Qe6 {[%emt 0:01:55]} 65. Qc2+ {[%emt 0:02:08]} Ke3 {[%emt 0:00:45]} 66. Qc5+ {[%emt 0:00:57]} Kd3 {[%emt 0:00:27]} 67. Qb6 {[%emt 0:00:42]} Qd7+ {[%emt 0:01:51]} 68. Kxa6 {[%emt 0:02:41]} Qc8+ {[%emt 0:00:05]} 69. Qb7 {[%emt 0:01:23]} Qe6+ 70. Qb6 {[%emt 0:01:19]} Qc8+ {[%emt 0:00:17]} 71. Ka7 {[%emt 0:00:05]} Qd7+ {[%emt 0:00:51]} 72. Kb8 {[%emt 0:00:22]} Qe8+ {[%emt 0:00:30]} 73. Kb7 {[%emt 0:01:23]} Qe4+ {[%emt 0:00:10]} 74. Qc6 {[%emt 0:03:04]} Qxb4 {[%emt 0:00:20]} 75. Qd7+ {[%emt 0:00:10]} Kc3 {[%emt 0:00:57]} 76. a6 {[%emt 0:00:32]} Kb2 {[%emt 0:01:50]} 77. a7 {[%emt 0:01:24]} Qe4+ {[%emt 0:00:04]} 78. Qc6 {[%emt 0:00:28]} Qe7+ {[%emt 0:00:12]} 79. Kb6 {[%emt 0:00:53]} Qe3+ {[%emt 0:00:32]} 80. Qc5 {[%emt 0:00:12]} Qe6+ {[%emt 0:00:12]} 81. Ka5 {[%emt 0:00:31]} Qa2+ {[%emt 0:00:28]} 82. Kxb5 {[%emt 0:00:08]} Qg8 {[%emt 0:00:29]} 83. Qd4+ {[%emt 0:00:44]} Kb3 {[%emt 0:00:30]} 84. Qd1+ 1-0

[Event "1st Gujarat GM Open 2018"]
[Site "Ahmedabad"]
[Date "2018.10.07"]
[Round "3"]
[White "Harsha Bharathakoti"]
[Black "Ritviz, Parab"]
[Result "1-0"]
[ECO "E06"]
[WhiteElo "2492"]
[BlackElo "2252"]
[Annotator "ChessBase"]
[PlyCount "95"]
[EventDate "2018.10.05"]
[EventType "swiss"]
[EventCountry "IND"]
[SourceTitle "playchess.com"]
[Source "ChessBase"]
[SourceQuality "1"]
[TimeControl "5400+30"]

1. d4 Nf6 {[%emt 0:01:42]} 2. c4 {[%emt 0:00:11]} e6 {[%emt 0:00:38]} 3. Nf3 {[%emt 0:03:46]} d5 {[%emt 0:00:34]} 4. g3 {[%emt 0:01:26]} Be7 {[%emt 0:00:46]} 5. Bg2 {[%emt 0:00:06]} O-O {[%emt 0:00:21]} 6. O-O {[%emt 0:00:07]} dxc4 {[%emt 0:02:09]} 7. Qc2 {[%emt 0:02:41]} a6 {[%emt 0:22:21]} 8. a4 {[%emt 0:03:32]} Nbd7 {[%emt 0:02:50]} 9. Nbd2 {[%emt 0:09:17]} b6 {[%emt 0:13:47]} 10. Nxc4 {[%emt 0:15:45]} Bb7 {[%emt 0:00:20]} 11. Rd1 {[%emt 0:03:39]} Be4 {[%emt 0:06:01]} 12. Qb3 {[%emt 0:00:33]} b5 {[%emt 0:07:29]} 13. axb5 {[%emt 0:18:21]} axb5 {[%emt 0:00:09]} 14. Rxa8 {[%emt 0:00:05]} Qxa8 {[%emt 0:00:11]} 15. Qxb5 {[%emt 0:00:13]} Rb8 {[%emt 0:14:07]} 16. Qa5 {[%emt 0:00:34]} Qb7 {[%emt 0:00:58]} 17. Bf4 {[%emt 0:08:23]} Nd5 {[%emt 0:01:48]} 18. Qd2 {[%emt 0:06:15]} Qb3 {[%emt 0:16:33]} 19. Rc1 {[%emt 0:03:25]} Bb4 {[%emt 0:00:24]} 20. Qd1 {[%emt 0:00:06]} Qxd1+ {[%emt 0:01:19]} 21. Rxd1 {[%emt 0:02:08]} Nxf4 {[%emt 0:00:03]} 22. gxf4 {[%emt 0:00:06]} Bd5 {[%emt 0:05:47]} 23. Nfe5 {[%emt 0:03:11]} Nxe5 {[%emt 0:00:29]} 24. Nxe5 {[%emt 0:00:05]} Bb3 {[%emt 0:00:33]} 25. Ra1 {[%emt 0:01:25]} f6 {[%emt 0:00:21]} 26. Nc6 {[%emt 0:00:42]} Rb6 {[%emt 0:00:02]} 27. Nxb4 {[%emt 0:04:07]} Rxb4 {[%emt 0:00:02]} 28. e3 {[%emt 0:00:10]} Bc2 {[%emt 0:01:41]} 29. Ra8+ {[%emt 0:00:14]} Kf7 {[%emt 0:00:02]} 30. Ra7 {[%emt 0:00:04]} Rxb2 {[%emt 0:00:49]} 31. Rxc7+ {[%emt 0:00:03]} Kf8 {[%emt 0:00:03]} 32. Bf3 {[%emt 0:00:31]} Bd3 {[%emt 0:01:01]} 33. d5 {[%emt 0:06:09]} exd5 {[%emt 0:00:27]} 34. Bxd5 {[%emt 0:00:04]} Bg6 {[%emt 0:00:40]} 35. Rc8+ {[%emt 0:02:13]} Ke7 {[%emt 0:00:06]} 36. Rg8 {[%emt 0:00:05]} Kd6 {[%emt 0:00:40]} 37. Bf3 {[%emt 0:00:52]} Bf5 {[%emt 0:00:36]} 38. Kg2 {[%emt 0:02:28]} g6 {[%emt 0:00:25]} 39. Rg7 {[%emt 0:00:12]} Bd3 {[%emt 0:00:42]} 40. Rxh7 {[%emt 0:00:18]} Ke6 {[%emt 0:00:26]} 41. Bg4+ {[%emt 0:02:02]} f5 {[%emt 0:00:33]} 42. Bf3 {[%emt 0:00:04]} Kf6 {[%emt 0:00:13]} 43. Bd5 {[%emt 0:00:17]} Be4+ {[%emt 0:00:31]} 44. Bxe4 {[%emt 0:00:04]} fxe4 {[%emt 0:00:03]} 45. Ra7 {[%emt 0:00:22]} Rb4 {[%emt 0:00:43]} 46. Ra6+ {[%emt 0:00:08]} Kf5 {[%emt 0:00:13]} 47. Ra5+ {[%emt 0:00:21]} Kf6 {[%emt 0:00:06]} 48. h4 {[%emt 0:00:19]} 1-0

[Event "1st Gujarat GM Open 2018"]
[Site "Ahmedabad"]
[Date "2018.10.07"]
[Round "3"]
[White "Rahman, Ziaur"]
[Black "Suvradeepta, Das"]
[Result "1-0"]
[ECO "E81"]
[WhiteElo "2473"]
[BlackElo "2005"]
[Annotator "ChessBase"]
[PlyCount "114"]
[EventDate "2018.10.05"]
[EventType "swiss"]
[EventCountry "IND"]
[SourceTitle "playchess.com"]
[Source "ChessBase"]
[SourceQuality "1"]
[TimeControl "5400+30"]

1. d4 {[%emt 0:00:00]} Nf6 {[%emt 0:00:00]} 2. c4 {[%emt 0:00:00]} g6 {[%emt 0:00:00]} 3. Nc3 {[%emt 0:00:00]} Bg7 {[%emt 0:00:00]} 4. e4 {[%emt 0:00:00]} d6 {[%emt 0:00:04]} 5. f3 {[%emt 0:00:00]} O-O {[%emt 0:00:06]} 6. Be3 {[%emt 0:00:01]} Nfd7 {[%emt 0:00:09]} 7. Nge2 {[%emt 0:00:25]} c5 {[%emt 0:00:08]} 8. Qd2 {[%emt 0:00:23]} Nc6 {[%emt 0:04:55]} 9. g4 {[%emt 0:02:49]} cxd4 {[%emt 0:05:38]} 10. Nxd4 {[%emt 0:00:21]} Nde5 {[%emt 0:00:09]} 11. Be2 {[%emt 0:01:22]} Nxd4 {[%emt 0:04:05]} 12. Bxd4 {[%emt 0:00:21]} Be6 {[%emt 0:00:05]} 13. Nd5 {[%emt 0:02:45]} Rc8 {[%emt 0:04:28]} 14. b3 {[%emt 0:02:06]} Bxd5 {[%emt 0:08:46]} 15. exd5 {[%emt 0:06:23]} e6 {[%emt 0:08:41]} 16. O-O {[%emt 0:27:00]} exd5 {[%emt 0:16:22]} 17. cxd5 {[%emt 0:00:02]} Nd7 {[%emt 0:01:16]} 18. Bxg7 {[%emt 0:04:54]} Kxg7 {[%emt 0:00:02]} 19. Qd4+ {[%emt 0:00:08]} Qf6 {[%emt 0:01:44]} 20. Qxf6+ {[%emt 0:02:23]} Kxf6 {[%emt 0:02:33]} 21. Rac1 {[%emt 0:01:14]} Nb6 {[%emt 0:03:33]} 22. Bc4 {[%emt 0:04:29]} Nxc4 {[%emt 0:06:34]} 23. bxc4 {[%emt 0:02:10]} Rc5 {[%emt 0:01:11]} 24. Rb1 {[%emt 0:02:34]} b6 {[%emt 0:00:39]} 25. Rb4 {[%emt 0:00:27]} Ra5 {[%emt 0:03:46]} 26. Rf2 {[%emt 0:01:22]} Re8 {[%emt 0:00:46]} 27. Rc2 {[%emt 0:11:59]} Ra3 {[%emt 0:09:17]} 28. Rb3 {[%emt 0:02:34]} Ra4 {[%emt 0:01:36]} 29. Kf2 {[%emt 0:00:31]} Rc8 {[%emt 0:00:11]} 30. Rbc3 {[%emt 0:00:27]} Rc5 {[%emt 0:00:17]} 31. a3 {[%emt 0:00:24]} Rc8 {[%emt 0:02:04]} 32. h3 {[%emt 0:02:02]} Ra5 {[%emt 0:03:54]} 33. Ke3 {[%emt 0:00:53]} Re8+ {[%emt 0:00:07]} 34. Kf2 {[%emt 0:00:11]} Kg5 {[%emt 0:00:26]} 35. Re2 {[%emt 0:02:43]} Rxe2+ {[%emt 0:00:58]} 36. Kxe2 {[%emt 0:00:02]} Rc5 {[%emt 0:00:06]} 37. Ke3 {[%emt 0:00:44]} Kh4 {[%emt 0:01:03]} 38. f4 {[%emt 0:08:42]} Rc8 {[%emt 0:09:12]} 39. a4 {[%emt 0:01:51]} Re8+ {[%emt 0:00:27]} 40. Kf3 {[%emt 0:00:12]} Re1 {[%emt 0:00:55]} 41. a5 {[%emt 0:00:49]} Rh1 {[%emt 0:00:00]} 42. Kg2 {[%emt 0:00:00]} Rb1 {[%emt 0:00:00]} 43. axb6 {[%emt 0:00:00]} Rb2+ {[%emt 0:00:00]} 44. Kf3 {[%emt 0:00:00]} axb6 {[%emt 0:00:00]} 45. Ke4 {[%emt 0:00:00]} Re2+ {[%emt 0:00:00]} 46. Kd4 {[%emt 0:00:00]} Rf2 {[%emt 0:00:00]} 47. Ke4 {[%emt 0:00:00]} Rb2 {[%emt 0:00:00]} 48. Kd4 {[%emt 0:00:00]} f5 {[%emt 0:00:00]} 49. gxf5 {[%emt 0:00:00]} gxf5 {[%emt 0:00:00]} 50. Re3 {[%emt 0:00:00]} Rf2 {[%emt 0:00:41]} 51. Re6 {[%emt 0:00:00]} Rxf4+ {[%emt 0:00:04]} 52. Kd3 {[%emt 0:00:00]} Rf3+ {[%emt 0:00:43]} 53. Kd4 {[%emt 0:00:00]} Rf4+ {[%emt 0:04:15]} 54. Kd3 {[%emt 0:00:00]} Rf3+ {[%emt 0:00:14]} 55. Kd4 {[%emt 0:00:00]} Rf4+ {[%emt 0:00:51]} 56. Kc3 {[%emt 0:00:00]} Rf3+ {[%emt 0:00:12]} 57. Kd4 {[%emt 0:00:00]} b5 {[%emt 0:01:26]} 1-0

[Event "1st Gujarat GM Open 2018"]
[Site "Ahmedabad"]
[Date "2018.10.07"]
[Round "3"]
[White "Gukesh D"]
[Black "Thanki, Hemal Karsanji"]
[Result "1-0"]
[ECO "B34"]
[WhiteElo "2456"]
[BlackElo "2148"]
[Annotator "RC"]
[PlyCount "100"]
[EventDate "2018.10.05"]
[EventType "swiss"]
[EventCountry "IND"]
[SourceTitle "playchess.com"]
[Source "ChessBase"]
[SourceQuality "1"]
[TimeControl "5400+30"]

1. e4 {[%emt 0:00:00]} c5 {[%emt 0:00:28]} 2. Nf3 {[%emt 0:00:00]} Nc6 {[%emt 0:00:05]} 3. d4 {[%emt 0:00:00]} cxd4 {[%emt 0:00:03]} 4. Nxd4 {[%emt 0:00:02]} g6 {[%emt 0:00:04]} 5. Nc3 {[%emt 0:00:25]} Bg7 {[%emt 0:00:07]} 6. Nde2 {[%emt 0:00:51]} Nf6 {[%emt 0:00:16]} 7. g3 {[%emt 0:00:19]} b5 {[%emt 0:02:36]} 8. Bg2 {[%emt 0:01:02]} Rb8 {[%emt 0:00:25]} 9. O-O {[%emt 0:01:19]} O-O {[%emt 0:00:08]} 10. h3 {[%emt 0:03:02]} d6 {[%emt 0:01:08]} 11. Be3 {[%emt 0:08:45]} a5 {[%emt 0:09:08]} 12. a3 {[%emt 0:08:55]} Bd7 {[%emt 0:02:02]} 13. Nd5 {[%emt 0:02:10]} Re8 {[%emt 0:06:32]} 14. f4 {[%emt 0:08:13]} b4 {[%emt 0:01:16]} 15. axb4 {[%emt 0:01:17]} axb4 {[%emt 0:00:08]} 16. Bf2 {[%emt 0:06:25]} Nxd5 {[%emt 0:14:18]} 17. exd5 {[%emt 0:00:09]} Na5 {[%emt 0:00:22]} 18. Nd4 {[%emt 0:01:15]} Nc4 {[%emt 0:17:25]} 19. b3 {[%emt 0:00:49]} Nb6 {[%emt 0:12:13]} 20. Ra7 {[%emt 0:13:07]} Qc8 {[%emt 0:04:25]} 21. Nc6 {[%emt 0:11:40]} Bxc6 {[%emt 0:13:52]} 22. dxc6 {[%emt 0:00:03]} d5 {[%emt 0:00:27]} 23. Bxd5 {[%emt 0:07:10]} Nxd5 {[%emt 0:02:09]} 24. Qxd5 {[%emt 0:00:05]} Qxh3 {[%emt 0:00:36]} 25. Qd7 {[%emt 0:04:42]} Qf5 {[%emt 0:02:39]} 26. Qxf5 {[%emt 0:00:52]} gxf5 {[%emt 0:00:03]} 27. c7 {[%emt 0:00:42]} Rbc8 {[%emt 0:00:39]} 28. Rd1 {[%emt 0:01:21]} e6 {[%emt 0:01:42]} 29. Rd7 {[%emt 0:03:40]} Bf6 {[%emt 0:00:45]} 30. Bc5 {[%emt 0:01:15]} Bc3 {[%emt 0:03:54]} 31. Rb7 {[%emt 0:01:12]} Kg7 {[%emt 0:00:54]} 32. Bxb4 {[%emt 0:00:04]} Bxb4 {[%emt 0:00:11]} 33. Rxb4 {[%emt 0:00:02]} Kf6 {[%emt 0:00:31]} 34. Rbd4 {[%emt 0:11:20]} Re7 {[%emt 0:00:21]} 35. c4 {[%emt 0:00:16]} Rxc7 {[%emt 0:00:11]} 36. Rxc7 {[%emt 0:00:01]} Rxc7 {[%emt 0:00:01]} 37. b4 {[%emt 0:02:01]} Ke7 {[%emt 0:00:05]} 38. c5 {[%emt 0:00:39]} Rd7 {[%emt 0:00:50]} 39. Rc4 {[%emt 0:00:35]} Rd3 {[%emt 0:00:24]} 40. Kf2 {[%emt 0:02:27]} Kd7 {[%emt 0:01:55]} 41. b5 {[%emt 0:00:50]} Rb3 {[%emt 0:00:33]} 42. c6+ {[%emt 0:00:07]} Kc7 {[%emt 0:00:17]} 43. Rc5 {[%emt 0:00:19]} f6 {[%emt 0:03:28]} 44. Ke2 {[%emt 0:01:30]} h5 {[%emt 0:00:47]} 45. Kd2 {[%emt 0:00:41]} Rxg3 {[%emt 0:01:12]} 46. b6+ {[%emt 0:00:36]} Kc8 {[%emt 0:00:48]} 47. Ra5 {[%emt 0:00:35]} Kb8 {[%emt 0:00:25]} 48. c7+ {[%emt 0:00:01]} Kb7 {[%emt 0:00:35]} 49. Ra8 {[%emt 0:00:01]} Rg2+ {[%emt 0:00:32]} 50. Kd3 {[%emt 0:00:07]} Rg3+ {[%emt 0:00:12] Ke4} 1-0

[Event "1st Gujarat GM Open 2018"]
[Site "Ahmedabad"]
[Date "2018.10.07"]
[Round "3"]
[White "Vignesh N R"]
[Black "Deshpande, Aniruddha"]
[Result "1-0"]
[ECO "B61"]
[WhiteElo "2447"]
[BlackElo "2213"]
[Annotator "ChessBase"]
[PlyCount "115"]
[EventDate "2018.10.05"]
[EventType "swiss"]
[EventCountry "IND"]
[SourceTitle "playchess.com"]
[Source "ChessBase"]
[SourceQuality "1"]
[TimeControl "5400+30"]

1. e4 {[%emt 0:00:00]} c5 {[%emt 0:06:46]} 2. Nf3 {[%emt 0:03:31]} d6 {[%emt 0:00:14]} 3. d4 {[%emt 0:00:46]} cxd4 {[%emt 0:00:06]} 4. Nxd4 {[%emt 0:00:52]} Nf6 {[%emt 0:00:08]} 5. Nc3 {[%emt 0:00:04]} Nc6 {[%emt 0:00:17]} 6. Bg5 {[%emt 0:06:14]} Bd7 {[%emt 0:04:55]} 7. Qd2 {[%emt 0:06:03]} Rc8 {[%emt 0:01:02]} 8. O-O-O {[%emt 0:00:22]} Nxd4 {[%emt 0:00:29]} 9. Qxd4 {[%emt 0:00:05]} Qa5 {[%emt 0:00:08]} 10. Bd2 {[%emt 0:04:03]} a6 {[%emt 0:04:42]} 11. Kb1 {[%emt 0:04:34]} Qc5 {[%emt 0:02:15]} 12. Qxc5 {[%emt 0:01:04]} Rxc5 {[%emt 0:00:13]} 13. f3 {[%emt 0:01:35]} e6 {[%emt 0:11:40]} 14. Bf4 {[%emt 0:05:38]} Rc6 {[%emt 0:02:33]} 15. g4 {[%emt 0:01:31]} h6 {[%emt 0:06:13]} 16. e5 {[%emt 0:01:52]} dxe5 {[%emt 0:04:15]} 17. Bxe5 {[%emt 0:00:02]} Be7 {[%emt 0:00:40]} 18. Ne2 {[%emt 0:10:24]} Rc5 {[%emt 0:05:32]} 19. Bd4 {[%emt 0:07:56]} Rc8 {[%emt 0:00:44]} 20. Nf4 {[%emt 0:00:02]} Bc6 {[%emt 0:00:48]} 21. Be2 {[%emt 0:00:08]} Rd8 {[%emt 0:03:04]} 22. Be5 {[%emt 0:06:47]} O-O {[%emt 0:04:24]} 23. c4 {[%emt 0:00:04]} Nd7 {[%emt 0:11:07]} 24. Bc3 {[%emt 0:01:44]} Bf6 {[%emt 0:01:31]} 25. Kc2 {[%emt 0:12:13]} Bxc3 {[%emt 0:03:09]} 26. Kxc3 {[%emt 0:00:02]} Ne5 {[%emt 0:00:03]} 27. Rxd8 {[%emt 0:00:29]} Rxd8 {[%emt 0:00:11]} 28. Rf1 {[%emt 0:00:15]} g5 {[%emt 0:09:08]} 29. Nh5 {[%emt 0:00:49]} Ng6 {[%emt 0:08:18]} 30. f4 {[%emt 0:01:31]} Nxf4 {[%emt 0:00:25]} 31. Nxf4 {[%emt 0:00:06]} gxf4 {[%emt 0:00:06]} 32. Rxf4 {[%emt 0:00:02]} Kg7 {[%emt 0:01:34]} 33. Bd3 {[%emt 0:02:53]} e5 {[%emt 0:01:11]} 34. Rf2 {[%emt 0:00:41]} Rd4 {[%emt 0:00:42]} 35. h3 {[%emt 0:00:37]} a5 {[%emt 0:03:13]} 36. b3 {[%emt 0:00:27]} f6 {[%emt 0:00:55]} 37. a3 {[%emt 0:00:13]} h5 {[%emt 0:00:05]} 38. gxh5 {[%emt 0:02:02]} Rh4 {[%emt 0:00:03]} 39. Bf5 {[%emt 0:00:07]} Be4 {[%emt 0:01:43]} 40. Bg4 {[%emt 0:03:51]} f5 {[%emt 0:00:13]} 41. Bxf5 {[%emt 0:00:04]} Bxf5 {[%emt 0:00:10]} 42. Rxf5 {[%emt 0:00:01]} Rxh3+ {[%emt 0:00:13]} 43. Kc2 {[%emt 0:00:07]} Rh2+ {[%emt 0:00:43]} 44. Kd3 {[%emt 0:00:16]} Rh3+ {[%emt 0:00:03]} 45. Ke4 {[%emt 0:00:25]} Rxb3 {[%emt 0:00:44]} 46. Rxe5 {[%emt 0:08:06]} Rxa3 {[%emt 0:02:06]} 47. Rb5 {[%emt 0:00:02]} Rh3 {[%emt 0:02:41]} 48. Rxa5 {[%emt 0:04:11]} Rh4+ {[%emt 0:00:32]} 49. Kd3 {[%emt 0:00:05]} Kf6 {[%emt 0:01:43]} 50. Rb5 {[%emt 0:00:10]} Ke6 {[%emt 0:00:18]} 51. h6 {[%emt 0:02:25]} Kd6 {[%emt 0:00:44]} 52. Rxb7 {[%emt 0:00:13]} Kc6 {[%emt 0:00:14]} 53. Rh7 {[%emt 0:00:06]} Kc5 {[%emt 0:00:41]} 54. Rh8 {[%emt 0:00:41]} Rh3+ {[%emt 0:00:43]} 55. Ke2 {[%emt 0:00:14]} Kc6 {[%emt 0:00:29]} 56. h7 {[%emt 0:00:22]} Kb7 {[%emt 0:00:11]} 57. c5 {[%emt 0:00:05]} Rh6 {[%emt 0:00:20]} 58. c6+ {[%emt 0:00:19]} 1-0

[Event "1st Gujarat GM Open 2018"]
[Site "Ahmedabad"]
[Date "2018.10.07"]
[Round "3"]
[White "Bakunts, Rafael"]
[Black "Kamdar Udit"]
[Result "1-0"]
[ECO "B14"]
[WhiteElo "2427"]
[BlackElo "2103"]
[Annotator "ChessBase"]
[PlyCount "75"]
[EventDate "2018.10.05"]
[EventType "swiss"]
[EventCountry "IND"]
[SourceTitle "playchess.com"]
[Source "ChessBase"]
[SourceQuality "1"]
[TimeControl "5400+30"]

1. e4 {[%emt 0:00:00]} c6 {[%emt 0:01:35]} 2. d4 {[%emt 0:00:27]} d5 {[%emt 0:00:03]} 3. exd5 {[%emt 0:00:17]} cxd5 {[%emt 0:00:02]} 4. c4 {[%emt 0:00:06]} Nf6 {[%emt 0:00:46]} 5. Nc3 {[%emt 0:00:10]} g6 {[%emt 0:01:18]} 6. cxd5 {[%emt 0:06:25]} Bg7 {[%emt 0:03:43]} 7. Qb3 {[%emt 0:01:51]} O-O {[%emt 0:00:53]} 8. Be2 {[%emt 0:00:38]} Nbd7 {[%emt 0:00:36]} 9. Bf3 {[%emt 0:00:58]} Nb6 {[%emt 0:00:45]} 10. Nge2 {[%emt 0:01:22]} Bg4 {[%emt 0:00:40]} 11. Bxg4 {[%emt 0:03:46]} Nxg4 {[%emt 0:01:48]} 12. O-O Nf6 {[%emt 0:13:31]} 13. Bg5 {[%emt 0:13:11]} Nfxd5 {[%emt 0:05:18]} 14. a4 {[%emt 0:00:07]} a5 {[%emt 0:07:37]} 15. Rfd1 {[%emt 0:05:08]} h6 {[%emt 0:24:41]} 16. Bd2 {[%emt 0:05:16]} Qd7 {[%emt 0:13:00]} 17. Nb5 {[%emt 0:02:32]} Rfc8 {[%emt 0:02:11]} 18. Rac1 {[%emt 0:00:33]} e6 {[%emt 0:07:05]} 19. h3 {[%emt 0:04:30]} Bf8 {[%emt 0:01:16]} 20. Rxc8 {[%emt 0:03:44]} Nxc8 {[%emt 0:00:50]} 21. Nec3 {[%emt 0:00:41]} Nf6 {[%emt 0:08:17]} 22. d5 {[%emt 0:17:44]} Nxd5 {[%emt 0:01:36]} 23. Nxd5 {[%emt 0:00:20]} exd5 {[%emt 0:00:45]} 24. Bf4 {[%emt 0:02:22]} Ne7 {[%emt 0:00:58]} 25. Nd6 {[%emt 0:00:58]} Ra6 {[%emt 0:01:40]} 26. Nb5 {[%emt 0:00:02]} Ra8 {[%emt 0:00:00]} 27. Nd6 {[%emt 0:00:58]} Ra6 {[%emt 0:01:00]} 28. Nxb7 {[%emt 0:03:58]} Qf5 {[%emt 0:00:55]} 29. Be3 {[%emt 0:01:58]} Qc8 {[%emt 0:00:59]} 30. Qb5 {[%emt 0:02:22]} Ra8 {[%emt 0:00:29]} 31. Rc1 {[%emt 0:07:00]} Qe6 {[%emt 0:00:32]} 32. Nxa5 {[%emt 0:01:24]} Nf5 {[%emt 0:00:18]} 33. Bb6 {[%emt 0:01:50]} Bd6 {[%emt 0:00:40]} 34. Nc6 {[%emt 0:00:46]} Qe4 {[%emt 0:00:01]} 35. Rd1 {[%emt 0:06:22]} Re8 {[%emt 0:00:49]} 36. Nd4 {[%emt 0:04:11]} Nxd4 {[%emt 0:00:47]} 37. Bxd4 {[%emt 0:00:10]} Qf4 {[%emt 0:00:24]} 38. Qxe8+ {[%emt 0:00:07]} 1-0